fUST/lending_fUST_20251202
["ID","MTS","AMOUNT","RATE_DAILY","PERIOD"]
[395326737,1764631832036,-230.0,9.673e-05,2]
[395326738,1764631832046,-1120.0,9.674e-05,2]
[395326739,1764631832059,-500.0,9.675e-05,2]
[395326740,1764631832069,-500.0,9.675e-05,2]
[395326741,1764631832079,-318.69988573,9.675e-05,2]
[395326742,1764631832088,-7097.44487019,9.676e-05,2]
[395326743,1764631832099,-6191.54781475,9.676e-05,2]
[395326744,1764631832192,-432.965,9.676e-05,2]
[395326786,1764631838063,-448.50379478,9.673e-05,2]
[395326788,1764631838073,-500.0,9.673e-05,2]
[395326790,1764631838083,-500.0,9.673e-05,2]
[395326791,1764631838092,-500.0,9.673e-05,2]
[395326793,1764631838102,-500.0,9.673e-05,2]
[395326795,1764631838111,-500.0,9.673e-05,2]
[395326797,1764631838121,-500.0,9.673e-05,2]
[395326799,1764631838130,-500.0,9.673e-05,2]
[395326801,1764631838140,-500.0,9.673e-05,2]
[395326803,1764631838149,-500.0,9.673e-05,2]
[395326805,1764631838159,-500.0,9.673e-05,2]
[395326807,1764631838170,-500.0,9.673e-05,2]
[395326809,1764631838179,-589.74678163,9.673e-05,2]
[395326811,1764631838189,-500.0,9.673e-05,2]
[395326813,1764631838198,-500.0,9.673e-05,2]
[395326815,1764631838207,-500.0,9.673e-05,2]
[395326817,1764631838217,-500.0,9.673e-05,2]
[395326819,1764631838227,-500.0,9.673e-05,2]
[395326825,1764631838492,-500.0,9.673e-05,2]
[395326826,1764631838502,-500.0,9.673e-05,2]
[395326827,1764631838511,-500.0,9.673e-05,2]
[395326828,1764631838520,-500.0,9.673e-05,2]
[395326829,1764631838530,-500.0,9.673e-05,2]
[395326830,1764631838541,-500.0,9.673e-05,2]
[395326831,1764631838551,-500.0,9.673e-05,2]
[395326832,1764631838561,-500.0,9.673e-05,2]
[395326833,1764631838570,-500.0,9.673e-05,2]
[395326834,1764631838580,-500.0,9.673e-05,2]
[395326835,1764631838589,-500.0,9.673e-05,2]
[395326836,1764631838599,-500.0,9.673e-05,2]
[395326837,1764631838608,-500.0,9.673e-05,2]
[395326838,1764631838618,-500.0,9.673e-05,2]
[395326839,1764631838628,-500.0,9.673e-05,2]
[395326840,1764631838637,-500.0,9.673e-05,2]
[395326841,1764631838647,-500.0,9.673e-05,2]
[395326842,1764631838657,-500.0,9.673e-05,2]
[395326843,1764631838667,-500.0,9.673e-05,2]
[395326844,1764631838677,-246.42901843,9.673e-05,2]
[395326845,1764631838687,-500.0,9.673e-05,2]
[395326846,1764631838701,-500.0,9.673e-05,2]
[395326847,1764631838720,-500.0,9.673e-05,2]
[395326848,1764631838738,-500.0,9.673e-05,2]
[395326849,1764631838748,-500.0,9.673e-05,2]
[395326850,1764631838757,-500.0,9.673e-05,2]
[395326851,1764631838767,-873384.85435112,9.676e-05,2]
[395326852,1764631838776,-17393.5704556,9.713e-05,2]
[395326853,1764631838785,-13527.55127432,9.713e-05,2]
[395326854,1764631838795,-870.0,9.773e-05,2]
[395326855,1764631838804,-500.0,9.773e-05,2]
[395326856,1764631838813,-500.0,9.773e-05,2]
[395326857,1764631838823,-151.0,9.773e-05,2]
[395326858,1764631838832,-500.0,9.773e-05,2]
[395326859,1764631838841,-187.23,9.774e-05,2]
[395326860,1764631838850,-4335.73295486,9.816e-05,2]
[395326861,1764631838860,-278.78941325,9.816e-05,2]
[395326862,1764631838869,-223.0315306,9.816e-05,2]
[395326863,1764631838879,-4496.15507419,9.871e-05,2]
[395326864,1764631838891,-870.0,9.91e-05,2]
[395326865,1764631838901,-500.0,9.91e-05,2]
[395326866,1764631838911,-500.0,9.91e-05,2]
[395326867,1764631838921,-151.0,9.91e-05,2]
[395326868,1764631838931,-500.0,9.91e-05,2]
[395326869,1764631838941,-3090.77636388,9.926e-05,2]
[395326870,1764631838951,-152.00138222,9.936e-05,2]
[395326871,1764631838961,-151.0,9.936e-05,2]
[395326872,1764631838970,-151.0,9.936e-05,2]
[395326873,1764631838981,-152.44518229,9.936e-05,2]
[395326874,1764631838991,-151.0,9.936e-05,2]
[395326875,1764631839001,-153.19973971,9.936e-05,2]
[395326876,1764631839011,-500.0,9.936e-05,2]
[395326877,1764631839022,-209.37660835,9.936e-05,2]
[395326878,1764631839032,-152.75342558,9.936e-05,2]
[395326879,1764631839042,-201.26442786,9.936e-05,2]
[395326880,1764631839052,-151.45815104,9.936e-05,2]
[395326881,1764631839062,-151.0,9.936e-05,2]
[395326882,1764631839072,-222.36444701,9.936e-05,2]
[395326883,1764631839081,-151.0,9.936e-05,2]
[395326884,1764631839091,-151.0,9.936e-05,2]
[395326885,1764631839101,-151.0,9.936e-05,2]
[395326886,1764631839111,-500.0,9.936e-05,2]
[395326887,1764631839122,-500.0,9.936e-05,2]
[395326888,1764631839133,-500.0,9.949e-05,2]
[395326889,1764631839143,-500.0,9.991e-05,2]
[395326890,1764631839152,-202.49792026,9.991e-05,2]
[395326891,1764631839162,-151.0,0.0001,2]
[395326892,1764631839173,-151.0,0.0001,2]
[395326893,1764631839182,-151.0,0.0001,2]
[395326894,1764631839191,-151.0,0.0001,2]
[395326895,1764631839201,-151.0,0.0001,2]
[395326896,1764631839210,-151.0,0.0001,2]
[395326897,1764631839219,-151.0,0.0001,2]
[395326898,1764631839228,-151.0,0.0001,2]
[395326899,1764631839237,-151.0,0.0001,2]
[395326900,1764631839246,-151.0,0.0001,2]
[395326901,1764631839255,-151.0,0.0001,2]
[395326902,1764631839264,-151.0,0.0001,2]
[395326903,1764631839273,-151.0,0.0001,2]
[395326904,1764631839283,-151.0,0.0001,2]
[395326905,1764631839292,-151.0,0.0001,2]
[395326906,1764631839301,-151.0,0.0001,2]
[395326907,1764631839310,-151.0,0.0001,2]
[395326908,1764631839320,-151.0,0.0001,2]
[395326909,1764631839329,-151.0,0.0001,2]
[395326910,1764631839342,-151.0,0.0001,2]
[395326911,1764631839351,-3004.12212253,0.00010002,2]
[395326912,1764631839361,-870.0,0.00010047,2]
[395326913,1764631839370,-199.04761067,0.00010047,2]
[395326915,1764631839379,-500.0,0.00010047,2]
[395326917,1764631839389,-500.0,0.00010047,2]
[395326918,1764631839398,-187.23,0.00010048,2]
[395326919,1764631839412,-43726.9563489,0.0001007,2]
[395326920,1764631839426,-151.0,0.00010073,2]
[395326921,1764631839436,-151.98929535,0.00010073,2]
[395326922,1764631839445,-500.0,0.00010073,2]
[395326923,1764631839454,-151.39524175,0.00010073,2]
[395326924,1764631839464,-151.0,0.00010073,2]
[395326925,1764631839473,-151.0,0.00010073,2]
[395326927,1764631839483,-500.0,0.00010073,2]
[395326928,1764631839491,-500.04919629,0.00010073,2]
[395326929,1764631839501,-500.0,0.00010128,2]
[395326930,1764631839511,-870.0,0.00010184,2]
[395326932,1764631839520,-500.0,0.00010184,2]
[395326933,1764631839529,-500.0,0.00010184,2]
[395326934,1764631839539,-151.0,0.0001021,2]
[395326936,1764631839548,-500.0,0.0001021,2]
[395326939,1764631839558,-151.0,0.0001021,2]
[395326941,1764631839567,-151.0,0.0001021,2]
[395326943,1764631839576,-500.0,0.0001021,2]
[395326945,1764631839586,-500.0,0.00010223,2]
[395326947,1764631839595,-3004.12212253,0.00010244,2]
[395326949,1764631839605,-500.0,0.00010265,2]
[395326951,1764631839614,-870.0,0.00010321,2]
[395326953,1764631839623,-172.0,0.00010321,2]
[395326955,1764631839633,-500.0,0.00010321,2]
[395326957,1764631839642,-187.23397606,0.00010322,2]
[395326959,1764631839651,-151.0,0.00010347,2]
[395326961,1764631839660,-500.0,0.00010347,2]
[395326963,1764631839669,-198.0,0.00010347,2]
[395326965,1764631839679,-151.0,0.00010347,2]
[395326967,1764631839688,-500.0,0.00010347,2]
[395326969,1764631839697,-155.79370685,0.00010359,2]
[395326971,1764631839706,-231.28369723,0.00010364,2]
[395326973,1764631839716,-500.0,0.00010402,2]
[395326975,1764631839725,-400.0,0.0001042,2]
[395326976,1764631839734,-870.0,0.00010458,2]
[395326978,1764631839742,-242.07963324,0.00010458,2]
[395326980,1764631839751,-294.82138668,0.00010484,2]
[395326982,1764631839760,-520.62546675,0.00010484,2]
[395326983,1764631839770,-500.0,0.00010497,2]
[395326984,1764631839779,-500.0,0.00010539,2]
[395326985,1764631839788,-870.0,0.00010595,2]
[395326986,1764631839797,-3004.12212253,0.00010606,2]
[395326987,1764631839807,-420.0,0.0001064,2]
[395326988,1764631839815,-500.0,0.00010676,2]
[395326989,1764631839824,-870.0,0.00010732,2]
[395326990,1764631839833,-500.0,0.00010771,2]
[395326991,1764631839843,-500.0,0.00010813,2]
[395326992,1764631839853,-310.11248459,0.00010843,2]
[395326993,1764631839862,-870.0,0.00010869,2]
[395326994,1764631839871,-300.0,0.00010887,2]
[395326995,1764631839881,-300.0,0.00010887,2]
[395326996,1764631839891,-300.0,0.00010887,2]
[395326997,1764631839900,-300.0,0.00010887,2]
[395326998,1764631839908,-300.0,0.00010887,2]
[395326999,1764631839918,-300.0,0.00010887,2]
[395327000,1764631839927,-300.0,0.00010887,2]
[395327001,1764631839936,-300.0,0.00010887,2]
[395327002,1764631839945,-300.0,0.00010887,2]
[395327003,1764631839954,-300.0,0.00010887,2]
[395327004,1764631839963,-300.0,0.00010887,2]
[395327005,1764631839972,-300.0,0.00010887,2]
[395327006,1764631839980,-300.0,0.00010887,2]
[395327007,1764631839989,-300.0,0.00010887,2]
[395327008,1764631839998,-300.0,0.00010887,2]
[395327009,1764631840007,-600.0,0.00010887,2]
[395327010,1764631840016,-239.84119403,0.00010912,2]
[395327011,1764631840025,-500.0,0.0001095,2]
[395327012,1764631840033,-500.0,0.00010958,2]
[395327013,1764631840042,-500.0,0.00010959,2]
[395327014,1764631840051,-19366.1896548,0.00010959,2]
[395327015,1764631840060,-151.0,0.00010959,2]
[395327016,1764631840069,-151.0,0.00010959,2]
[395327017,1764631840079,-151.0,0.00010959,2]
[395327018,1764631840087,-151.0,0.00010959,2]
[395327019,1764631840096,-151.0,0.00010959,2]
[395327020,1764631840104,-151.0,0.00010959,2]
[395327021,1764631840113,-151.0,0.00010959,2]
[395327022,1764631840122,-245.0,0.00010959,2]
[395327023,1764631840134,-266.313188,0.00010959,2]
[395327024,1764631840143,-266.313188,0.00010959,2]
[395327025,1764631840152,-266.313188,0.00010959,2]
[395327026,1764631840161,-266.313188,0.00010959,2]
[395327027,1764631840170,-266.313188,0.00010959,2]
[395327028,1764631840179,-266.313188,0.00010959,2]
[395327029,1764631840188,-266.313188,0.00010959,2]
[395327030,1764631840198,-266.313188,0.00010959,2]
[395327031,1764631840208,-266.313188,0.00010959,2]
[395327032,1764631840218,-266.313188,0.00010959,2]
[395327033,1764631840228,-266.313188,0.00010959,2]
[395327034,1764631840238,-266.313188,0.00010959,2]
[395327035,1764631840247,-266.313188,0.00010959,2]
[395327036,1764631840257,-266.313188,0.00010959,2]
[395327037,1764631840267,-266.313188,0.00010959,2]
[395327039,1764631840277,-266.313188,0.00010959,2]
[395327040,1764631840286,-266.313188,0.00010959,2]
[395327041,1764631840297,-266.313188,0.00010959,2]
[395327042,1764631840307,-266.313188,0.00010959,2]
[395327043,1764631840317,-266.31319,0.00010959,2]
[395327045,1764631840328,-235.077861,0.00010959,2]
[395327047,1764631840340,-235.077861,0.00010959,2]
[395327049,1764631840351,-235.077861,0.00010959,2]
[395327051,1764631840362,-235.077861,0.00010959,2]
[395327053,1764631840373,-235.077861,0.00010959,2]
[395327055,1764631840386,-235.077861,0.00010959,2]
[395327057,1764631840399,-235.077861,0.00010959,2]
[395327059,1764631840410,-235.077861,0.00010959,2]
[395327061,1764631840421,-235.077861,0.00010959,2]
[395327063,1764631840432,-235.077861,0.00010959,2]
[395327065,1764631840443,-235.077861,0.00010959,2]
[395327067,1764631840454,-235.077861,0.00010959,2]
[395327069,1764631840465,-235.077861,0.00010959,2]
[395327071,1764631840475,-235.077861,0.00010959,2]
[395327073,1764631840484,-235.077861,0.00010959,2]
[395327075,1764631840494,-235.077861,0.00010959,2]
[395327077,1764631840504,-235.077861,0.00010959,2]
[395327079,1764631840513,-235.077861,0.00010959,2]
[395327081,1764631840524,-235.077861,0.00010959,2]
[395327083,1764631840533,-235.077855,0.00010959,2]
[395327085,1764631840543,-282.847957,0.00010959,2]
[395327087,1764631840554,-171.185194,0.00010959,2]
[395327089,1764631840563,-151.0,0.00010959,2]
[395327091,1764631840573,-151.0,0.00010959,2]
[395327093,1764631840583,-151.0,0.00010959,2]
[395327095,1764631840592,-151.0,0.00010959,2]
[395327097,1764631840603,-151.0,0.00010959,2]
[395327099,1764631840613,-151.0,0.00010959,2]
[395327101,1764631840623,-151.0,0.00010959,2]
[395327103,1764631840635,-151.0,0.00010959,2]
[395327105,1764631840646,-151.0,0.00010959,2]
[395327107,1764631840656,-193.278745,0.00010959,2]
[395327109,1764631840666,-151.0,0.00010959,2]
[395327111,1764631840675,-151.0,0.00010959,2]
[395327113,1764631840685,-151.0,0.00010959,2]
[395327115,1764631840695,-151.0,0.00010959,2]
[395327117,1764631840704,-151.0,0.00010959,2]
[395327119,1764631840713,-152.964153,0.00010959,2]
[395327121,1764631840723,-500.0,0.00010959,2]
[395327123,1764631840732,-500.0,0.00010959,2]
[395327125,1764631840741,-500.0,0.00010959,2]
[395327127,1764631840751,-500.0,0.00010959,2]
[395327129,1764631840760,-500.0,0.00010959,2]
[395327131,1764631840769,-500.0,0.00010959,2]
[395327133,1764631840778,-500.0,0.00010959,2]
[395327135,1764631840787,-500.0,0.00010959,2]
[395327137,1764631840796,-500.0,0.00010959,2]
[395327139,1764631840805,-500.0,0.00010959,2]
[395327141,1764631840815,-172.1199223,0.00010959,2]
[395327143,1764631840824,-500.0,0.00010959,2]
[395327145,1764631840833,-500.0,0.00010959,2]
[395327147,1764631840842,-500.0,0.00010959,2]
[395327149,1764631840851,-500.0,0.00010959,2]
[395327151,1764631840861,-500.0,0.00010959,2]
[395327153,1764631840870,-500.0,0.00010959,2]
[395327155,1764631840880,-500.0,0.00010959,2]
[395327157,1764631840891,-500.0,0.00010959,2]
[395327159,1764631840901,-500.0,0.00010959,2]
[395327161,1764631840910,-500.0,0.00010959,2]
[395327163,1764631840919,-500.0,0.00010959,2]
[395327165,1764631840929,-500.0,0.00010959,2]
[395327167,1764631840938,-500.0,0.00010959,2]
[395327169,1764631840948,-500.0,0.00010959,2]
[395327171,1764631840957,-500.0,0.00010959,2]
[395327173,1764631840967,-500.0,0.00010959,2]
[395327175,1764631840977,-500.0,0.00010959,2]
[395327177,1764631840987,-500.0,0.00010959,2]
[395327179,1764631840996,-500.0,0.00010959,2]
[395327181,1764631841005,-500.0,0.00010959,2]
[395327183,1764631841015,-500.0,0.00010959,2]
[395327185,1764631841025,-500.0,0.00010959,2]
[395327187,1764631841035,-500.0,0.00010959,2]
[395327189,1764631841045,-500.0,0.00010959,2]
[395327191,1764631841055,-500.0,0.00010959,2]
[395327193,1764631841066,-500.0,0.00010959,2]
[395327195,1764631841076,-500.0,0.00010959,2]
[395327197,1764631841085,-500.0,0.00010959,2]
[395327199,1764631841094,-500.0,0.00010959,2]
[395327201,1764631841103,-650.0,0.00010959,2]
[395327203,1764631841112,-500.0,0.00010959,2]
[395327205,1764631841121,-500.0,0.00010959,2]
[395327207,1764631841131,-500.0,0.00010959,2]
[395327209,1764631841142,-500.0,0.00010959,2]
[395327211,1764631841151,-500.0,0.00010959,2]
[395327213,1764631841161,-500.0,0.00010959,2]
[395327215,1764631841171,-500.0,0.00010959,2]
[395327217,1764631841181,-500.0,0.00010959,2]
[395327219,1764631841190,-500.0,0.00010959,2]
[395327221,1764631841199,-500.0,0.00010959,2]
[395327223,1764631841211,-500.0,0.00010959,2]
[395327225,1764631841221,-500.0,0.00010959,2]
[395327227,1764631841230,-500.0,0.00010959,2]
[395327229,1764631841240,-500.0,0.00010959,2]
[395327231,1764631841249,-500.0,0.00010959,2]
[395327233,1764631841259,-500.0,0.00010959,2]
[395327235,1764631841268,-500.0,0.00010959,2]
[395327237,1764631841277,-500.0,0.00010959,2]
[395327239,1764631841287,-500.0,0.00010959,2]
[395327241,1764631841296,-500.0,0.00010959,2]
[395327243,1764631841305,-500.0,0.00010959,2]
[395327245,1764631841314,-500.0,0.00010959,2]
[395327247,1764631841324,-500.0,0.00010959,2]
[395327249,1764631841333,-500.0,0.00010959,2]
[395327251,1764631841345,-500.0,0.00010959,2]
[395327253,1764631841354,-500.0,0.00010959,2]
[395327255,1764631841363,-500.0,0.00010959,2]
[395327257,1764631841373,-500.0,0.00010959,2]
[395327259,1764631841384,-151.0,0.00011,2]
[395327261,1764631841393,-151.0,0.00011,2]
[395327263,1764631841403,-151.0,0.00011,2]
[395327265,1764631841414,-870.0,0.00011006,2]
[395327267,1764631841423,-250.0,0.00011016,2]
[395327270,1764631841433,-500.0,0.00011045,2]
[395327271,1764631841442,-310.11248459,0.00011084,2]
[395327273,1764631841452,-500.0,0.00011087,2]
[395327275,1764631841461,-151.0,0.000111,2]
[395327277,1764631841470,-870.0,0.00011143,2]
[395327279,1764631841479,-705.0635582,0.00011197,2]
[395327282,1764631841489,-326.10885942,0.00011212,2]
[395327284,1764631841499,-358.19312698,0.00011224,2]
[395327286,1764631841508,-586.99594695,0.00011227,2]
[395327288,1764631841517,-1596.84261476,0.0001124,2]
[395327290,1764631841527,-1043.54835014,0.00011242,2]
[395327291,1764631841536,-1269.11440475,0.00011244,2]
[395327294,1764631841545,-1630.5442971,0.00011257,2]
[395327295,1764631841555,-213.18,0.0001127,2]
[395327297,1764631841565,-2347.98378782,0.00011272,2]
[395327299,1764631841574,-870.0,0.0001128,2]
[395327301,1764631841583,-3195.86682231,0.00011287,2]
[395327303,1764631841592,-2256.20338623,0.00011292,2]
[395327305,1764631841601,-151.0,0.000113,2]
[395327307,1764631841611,-151.0,0.000113,2]
[395327309,1764631841619,-4174.19340057,0.00011303,2]
[395327311,1764631841629,-5282.96352259,0.00011318,2]
[395327313,1764631841640,-500.0,0.00011319,2]
[395327315,1764631841648,-310.11248459,0.00011325,2]
[395327317,1764631841658,-6522.17718839,0.00011333,2]
[395327319,1764631841668,-3525.31779099,0.0001134,2]
[395327321,1764631841677,-7891.83439795,0.00011348,2]
[395327323,1764631841686,-9391.93515128,0.00011363,2]
[395327325,1764631841695,-1596.84261476,0.00011365,2]
[395327327,1764631841704,-11022.47944837,0.00011378,2]
[395327329,1764631841713,-151.0,0.000114,2]
[395327331,1764631841722,-870.0,0.00011417,2]
[395327333,1764631841731,-248.71531821,0.0001146,2]
[395327335,1764631841740,-1358.0,0.00011495,2]
[395327337,1764631841749,-2154.0,0.00011495,2]
[395327339,1764631841758,-631.0,0.00011495,2]
[395327341,1764631841768,-414.0,0.00011495,2]
[395327343,1764631841777,-151.0,0.000115,2]
[395327345,1764631841786,-500.0,0.00011507,2]
[395327347,1764631841795,-870.0,0.00011554,2]
[395327349,1764631841804,-260.67711371,0.00011582,2]
[395327351,1764631841813,-500.0,0.00011593,2]
[395327353,1764631841823,-151.0,0.000116,2]
[395327355,1764631841832,-1596.84261476,0.00011615,2]
[395327357,1764631841841,-231.46760397,0.00011626,2]
[395327359,1764631841850,-9756.8027729,0.00011646,2]
[395327361,1764631841860,-469.21880468,0.00011653,2]
[395327363,1764631841869,-237.308,0.00011685,2]
[395327365,1764631841878,-250.0,0.00011685,2]
[395327367,1764631841889,-258.008,0.00011685,2]
[395327369,1764631841898,-179.102,0.00011685,2]
[395327371,1764631841907,-265.964,0.00011685,2]
[395327373,1764631841917,-870.0,0.00011691,2]
[395327375,1764631841926,-513.74137691,0.00011691,2]
[395327377,1764631841936,-151.0,0.000117,2]
[395327379,1764631841945,-587.0,0.00011704,2]
[395327381,1764631841954,-160.0,0.00011717,2]
[395327383,1764631841963,-353.71323156,0.00011717,2]
[395327385,1764631841972,-834.16676387,0.00011724,2]
[395327387,1764631841981,-151.0,0.000118,2]
[395327389,1764631841990,-310.42259707,0.00011808,2]
[395327391,1764631842000,-870.0,0.00011828,2]
[395327393,1764631842009,-1596.84261476,0.00011865,2]
[395327395,1764631842018,-500.0,0.00011867,2]
[395327397,1764631842028,-151.0,0.000119,2]
[395327399,1764631842037,-20575.78478035,0.00011949,3]
[395327401,1764631842046,-3006.24376188,0.00011949,3]
[395327403,1764631842056,-217.777,0.00011957,2]
[395327405,1764631842065,-870.0,0.00011965,2]
[395327407,1764631842074,-720.0,0.00011976,2]
[395327409,1764631842083,-2177.0369652,0.00011998,2]
[395327411,1764631842092,-151.0,0.00012,2]
[395327413,1764631842102,-257.91778498,0.00012008,2]
[395327415,1764631842111,-500.0,0.00012054,2]
[395327417,1764631842120,-500.0,0.00012055,2]
[395327419,1764631842129,-151.0,0.000121,2]
[395327421,1764631842139,-870.0,0.00012102,2]
[395327423,1764631842149,-500.0,0.00012141,2]
[395327425,1764631842158,-151.0,0.000122,2]
[395327427,1764631842167,-870.0,0.00012239,2]
[395327429,1764631842176,-151.0,0.000123,2]
[395327431,1764631842185,-151.0,0.000123,2]
[395327433,1764631842194,-606.28928272,0.00012318,3]
[395327435,1764631842204,-5119.45,0.00012329,2]
[395327437,1764631842213,-4266.21,0.00012329,2]
[395327439,1764631842222,-3555.17,0.00012329,2]
[395327441,1764631842232,-2962.64,0.00012329,2]
[395327443,1764631842241,-2468.87,0.00012329,2]
[395327445,1764631842250,-2057.39,0.00012329,2]
[395327447,1764631842259,-1714.49,0.00012329,2]
[395327449,1764631842268,-1428.75,0.00012329,2]
[395327451,1764631842277,-1190.62,0.00012329,2]
[395327453,1764631842287,-992.18,0.00012329,2]
[395327455,1764631842296,-826.82,0.00012329,2]
[395327457,1764631842305,-689.02,0.00012329,2]
[395327459,1764631842314,-574.18,0.00012329,2]
[395327461,1764631842323,-478.48,0.00012329,2]
[395327463,1764631842332,-398.74,0.00012329,2]
[395327495,1764631842525,-332.28,0.00012329,2]
[395327497,1764631842535,-276.9,0.00012329,2]
[395327499,1764631842545,-230.75,0.00012329,2]
[395327502,1764631842555,-192.29,0.00012329,2]
[395327504,1764631842564,-160.24,0.00012329,2]
[395327506,1764631842573,-801.25,0.00012329,2]
[395327507,1764631842583,-30279.99,0.0001233,2]
[395327510,1764631842592,-870.0,0.00012376,2]
[395327511,1764631842601,-500.0,0.00012415,2]
[395327513,1764631842610,-9769.20731711,0.000125,2]
[395327516,1764631842619,-870.0,0.00012513,2]
[395327518,1764631842628,-9063.7633175,0.00012548,2]
[395327520,1764631842638,-267.46074303,0.00012556,2]
[395327521,1764631842647,-151.0,0.000126,2]
[395327523,1764631842656,-500.0,0.00012603,2]
[395327526,1764631842666,-870.0,0.0001265,2]
[395327527,1764631842675,-500.0,0.00012688,2]
[395327530,1764631842685,-870.0,0.00012787,2]
[395327532,1764631842694,-823.0,0.00012874,2]
[395327534,1764631842703,-151.0,0.000129,2]
[395327536,1764631842712,-21328.36915212,0.000129,2]
[395327538,1764631842721,-21328.3691521,0.000129,2]
[395327540,1764631842730,-871.0,0.00012924,2]
[395327542,1764631842739,-500.0,0.00012962,2]
[395327544,1764631842748,-277.35679052,0.00013104,2]
[395327546,1764631842757,-614.64,0.0001315,2]
[395327547,1764631842766,-500.0,0.00013151,2]
[395327550,1764631842775,-864.0,0.00013174,2]
[395327552,1764631842785,-151.0,0.000132,2]
[395327553,1764631842793,-500.0,0.00013236,2]
[395327555,1764631842803,-500.0,0.00013273,2]
[395327557,1764631842812,-500.0,0.00013273,2]
[395327559,1764631842821,-166.83992662,0.00013273,2]
[395327561,1764631842830,-648.37707052,0.00013273,2]
[395327563,1764631842839,-500.0,0.00013273,2]
[395327565,1764631842848,-500.72337876,0.00013273,2]
[395327567,1764631842858,-500.0,0.00013273,2]
[395327569,1764631842867,-500.0,0.00013273,2]
[395327571,1764631842876,-278.41003685,0.00013273,2]
[395327573,1764631842886,-500.0,0.00013273,2]
[395327575,1764631842895,-501.20506811,0.00013273,2]
[395327577,1764631842904,-500.0,0.00013273,2]
[395327579,1764631842913,-500.0,0.00013273,2]
[395327581,1764631842922,-500.0,0.00013273,2]
[395327583,1764631842931,-500.0,0.00013273,2]
[395327585,1764631842940,-500.0,0.00013273,2]
[395327587,1764631842950,-500.0,0.00013273,2]
[395327589,1764631842959,-500.0,0.00013273,2]
[395327591,1764631842968,-500.0,0.00013273,2]
[395327593,1764631842978,-158.07140597,0.00013273,2]
[395327595,1764631842987,-500.0,0.00013273,2]
[395327597,1764631842996,-500.0,0.00013273,2]
[395327599,1764631843006,-500.0,0.00013273,2]
[395327601,1764631843015,-500.0,0.00013273,2]
[395327603,1764631843025,-500.0,0.00013273,2]
[395327605,1764631843035,-500.0,0.00013273,2]
[395327607,1764631843044,-500.0,0.00013273,2]
[395327609,1764631843053,-500.0,0.00013273,2]
[395327611,1764631843062,-500.0,0.00013273,2]
[395327613,1764631843071,-160.09386729,0.00013273,2]
[395327615,1764631843081,-160.08360308,0.00013273,2]
[395327617,1764631843091,-500.0,0.00013273,2]
[395327619,1764631843100,-500.0,0.00013273,2]
[395327621,1764631843110,-501.88289409,0.00013273,2]
[395327623,1764631843119,-195.53635732,0.00013273,2]
[395327625,1764631843128,-500.22543398,0.00013273,2]
[395327627,1764631843138,-500.0,0.00013273,2]
[395327629,1764631843148,-500.0,0.00013273,2]
[395327630,1764631843157,-500.0,0.00013273,2]
[395327632,1764631843167,-500.0,0.00013273,2]
[395327634,1764631843176,-500.0,0.00013273,2]
[395327636,1764631843185,-500.0,0.00013273,2]
[395327639,1764631843194,-500.0,0.00013273,2]
[395327640,1764631843203,-500.0,0.00013273,2]